[Event "Schack-SM 2024: Sverigemastarklassen"]
[Site "Fortnox Arena, Hejaregatan 5, Vaxjo, Sweden"]
[Date "2024.06.29"]
[Round "1.5"]
[White "Hillarp Persson, Tiger"]
[Black "Hector, Jonny"]
[Result "0-1"]
[TimeControl "90 minutes for 40 moves + 30 minutes for the rest of the game + 30 seconds per move from move one."]
[WhiteTitle "GM"]
[BlackTitle "GM"]
[WhiteElo "2455"]
[BlackElo "2410"]

1. Nf3 {[%clk 01:30:57]} {[%emt 00:00:02]} d5 {[%clk 01:30:50]} {[%emt
00:00:11]} 2. g3 {[%clk 01:31:20]} {[%emt 00:00:07]} Nc6 {[%clk 01:31:07]}
{[%emt 00:00:11]} 3. d4 {[%clk 01:31:43]} {[%emt 00:00:07]} Bf5 {[%clk
01:31:23]} {[%emt 00:00:14]} 4. c4 {[%clk 01:30:09]} {[%emt 00:02:04]} e5
{[%clk 01:21:23]} {[%emt 00:10:29]} 5. Nxe5 {[%clk 00:34:52]} {[%emt 00:55:50]}
Nxe5 {[%clk 01:17:13]} {[%emt 00:04:39]} 6. dxe5 {[%clk 00:34:31]} {[%emt
00:00:51]} dxc4 {[%clk 01:16:27]} {[%emt 00:01:16]} 7. Qa4+ {[%clk 00:33:49]}
{[%emt 00:01:12]} c6 {[%clk 01:13:31]} {[%emt 00:03:25]} 8. Qxc4 {[%clk
00:33:34]} {[%emt 00:00:46]} Qa5+ {[%clk 01:12:40]} {[%emt 00:01:21]} 9. Nc3
{[%clk 00:33:22]} {[%emt 00:00:43]} Qxe5 {[%clk 01:12:32]} {[%emt 00:00:36]} 10.
Bg2 {[%clk 00:33:38]} {[%emt 00:00:16]} Qc5 {[%clk 01:05:46]} {[%emt 00:07:15]}
11. Qa4 {[%clk 00:31:10]} {[%emt 00:02:59]} Bd7 {[%clk 00:57:37]} {[%emt
00:08:38]} 12. O-O {[%clk 00:29:00]} {[%emt 00:02:41]} Nf6 {[%clk 00:57:21]}
{[%emt 00:00:43]} 13. Qb3 {[%clk 00:14:53]} {[%emt 00:14:39]} Qb4 {[%clk
00:55:21]} {[%emt 00:02:30]} 14. Qc2 {[%clk 00:15:18]} {[%emt 00:00:05]} Be7
{[%clk 00:45:43]} {[%emt 00:10:07]} 15. e4 {[%clk 00:13:16]} {[%emt 00:02:32]}
h5 {[%clk 00:41:40]} {[%emt 00:04:33]} 16. h3 {[%clk 00:10:52]} {[%emt
00:02:55]} Be6 {[%clk 00:40:36]} {[%emt 00:01:33]} 17. Be3 {[%clk 00:10:40]}
{[%emt 00:00:43]} Qa5 {[%clk 00:34:54]} {[%emt 00:06:11]} 18. f4 {[%clk
00:09:56]} {[%emt 00:01:15]} Bc5 {[%clk 00:32:43]} {[%emt 00:02:41]} 19. Bxc5
{[%clk 00:10:14]} {[%emt 00:00:14]} Qxc5+ {[%clk 00:33:07]} {[%emt 00:00:04]}
20. Qf2 {[%clk 00:10:38]} {[%emt 00:00:06]} Nd7 {[%clk 00:31:03]} {[%emt
00:02:33]} 21. Rfd1 {[%clk 00:07:59]} {[%emt 00:03:09]} Qxf2+ {[%clk 00:28:56]}
{[%emt 00:02:38]} 22. Kxf2 {[%clk 00:08:24]} {[%emt 00:00:05]} h4 {[%clk
00:28:37]} {[%emt 00:00:49]} 23. e5 {[%clk 00:06:25]} {[%emt 00:02:29]} hxg3+
{[%clk 00:23:25]} {[%emt 00:05:41]} 24. Kxg3 {[%clk 00:06:53]} {[%emt
00:00:03]} f6 {[%clk 00:22:53]} {[%emt 00:01:01]} 25. Ne4 {[%clk 00:06:52]}
{[%emt 00:00:31]} fxe5 {[%clk 00:21:11]} {[%emt 00:02:12]} 26. fxe5 {[%clk
00:07:14]} {[%emt 00:00:08]} Rh5 {[%clk 00:19:04]} {[%emt 00:02:35]} 27. Nd6+
{[%clk 00:07:24]} {[%emt 00:00:21]} Ke7 {[%clk 00:19:21]} {[%emt 00:00:13]} 28.
Nxb7 {[%clk 00:05:36]} {[%emt 00:02:19]} Rb8 {[%clk 00:16:11]} {[%emt
00:03:39]} 29. Na5 {[%clk 00:06:01]} {[%emt 00:00:06]} Nxe5 {[%clk 00:15:20]}
{[%emt 00:01:19]} 30. b3 {[%clk 00:05:19]} {[%emt 00:01:13]} Rg5+ {[%clk
00:14:13]} {[%emt 00:01:35]} 31. Kh2 {[%clk 00:05:35]} {[%emt 00:00:15]} Rh8
{[%clk 00:13:53]} {[%emt 00:00:49]} 32. Rf1 {[%clk 00:02:54]} {[%emt 00:03:12]}
Ng4+ {[%clk 00:05:51]} {[%emt 00:08:31]} 33. Kg1 {[%clk 00:03:16]} {[%emt
00:00:08]} Ne3 {[%clk 00:05:59]} {[%emt 00:00:22]} 34. Nxc6+ {[%clk 00:03:23]}
{[%emt 00:00:24]} Kd6 {[%clk 00:06:10]} {[%emt 00:00:17]} 35. Rfd1+ {[%clk
00:03:21]} {[%emt 00:00:33]} Kc7 {[%clk 00:05:46]} {[%emt 00:00:55]} 36. Rd2
{[%clk 00:03:33]} {[%emt 00:00:17]} Nxg2 {[%clk 00:04:56]} {[%emt 00:01:21]} 37.
Nd4 {[%clk 00:02:42]} {[%emt 00:01:21]} Nf4+ {[%clk 00:04:14]} {[%emt
00:01:10]} 38. Kf2 {[%clk 00:03:01]} {[%emt 00:00:12]} Rg2+ {[%clk 00:03:21]}
{[%emt 00:01:22]} 39. Ke3 {[%clk 00:03:23]} {[%emt 00:00:10]} Nd5+ {[%clk
00:03:17]} {[%emt 00:00:33]} 0-1